lending/lending_fUSD_20250318
["ID","MTS","AMOUNT","RATE_DAILY","PERIOD"]
[356324625,1742273441387,-916.621,0.0001,2]
[356324626,1742273441398,-3968.697,0.0001,2]
[356324627,1742273441408,-1161.002,0.0001,2]
[356324628,1742273441417,-1120.385,0.0001,2]
[356324629,1742273441426,-502.0,0.0001,2]
[356324630,1742273441436,-162.78012172,0.0001,2]
[356324631,1742273441445,-21038.65951131,0.0001,2]
[356324632,1742273441455,-238412.34644892,0.0001,2]
[356324633,1742273441470,-1905.28618318,0.0001,2]
[356324634,1742273441481,-2739.56148079,0.0001,2]
[356324635,1742273441492,-364.13101535,0.0001,2]
[356324687,1742273444034,-2360.34243915,0.0001,2]
[356324689,1742273444046,-50660.29928759,0.0001,2]
[356324691,1742273444057,-401.0,0.0001,2]
[356324693,1742273444070,-7216.64268312,0.0001,2]
[356324695,1742273446188,-286.2499825,0.0001,2]
[356324698,1742273446743,-261.7500175,0.0001,2]
[356324699,1742273446752,-309.30722182,0.0001,2]
[356324700,1742273447474,-813.75609051,0.0001,2]
[356324702,1742273509819,553952.58625392,9e-05,2]
[356324703,1742273509844,5514.8857246,9e-05,2]
[356324704,1742273509866,5514.8857246,9e-05,2]
[356324705,1742273509889,5514.8857246,9e-05,2]
[356324706,1742273509912,5514.8857246,9e-05,2]
[356324707,1742273509934,5514.8857246,9e-05,2]
[356324708,1742273509956,5514.8857246,9e-05,2]
[356324709,1742273509976,5514.8857246,9e-05,2]
[356324710,1742273509998,5514.8857246,9e-05,2]
[356324711,1742273510019,5514.8857246,9e-05,2]
[356324712,1742273510041,5514.8857246,9e-05,2]
[356324713,1742273510067,25000.0,9e-05,2]
[356324714,1742273522493,-332.76,9e-05,2]
[356324715,1742273550852,176.13,7.561e-05,2]
[356324716,1742273640245,1520.53,8.219e-05,2]
[356324720,1742273828190,151.77680198,0.000105,3]
[356324721,1742273833986,1403.34,8.866e-05,2]
[356324722,1742273834017,100.33,8.866e-05,2]
[356324723,1742273841761,508.34,8.87e-05,2]
[356324724,1742273847746,2000.0,8.87e-05,2]
[356324725,1742273865507,2500.0,8.9e-05,2]
[356324726,1742273876138,974.82,8.87e-05,2]
[356324727,1742273903764,2948.13,8.87e-05,2]
[356324728,1742273934652,1678.184,8.9e-05,2]
[356324730,1742273945681,9725.7837,8.9e-05,2]
[356324731,1742273959498,2879.6168,8.9e-05,2]
[356324732,1742273961555,16201.8997,8.9e-05,2]
[356324733,1742273988846,150.0,9.562e-05,7]
[356324734,1742273999389,1106.11,8.879e-05,2]
[356324735,1742273999597,1106.11,8.902e-05,2]
[356324737,1742274016799,611.89,8.547e-05,2]
[356324738,1742274063292,5560.852307,8.88e-05,2]
[356324740,1742274081011,1817.92,8.554e-05,2]
[356324741,1742274127992,364.29,8.171e-05,2]
[356324742,1742274133515,1000.0,8.219e-05,2]
[356324743,1742274144191,2500.0,8.9e-05,2]
[356324744,1742274146830,649.296,8.861e-05,2]
[356324745,1742274186435,200.0,8.14e-05,2]
[356324746,1742274231397,250.70802109,8.832e-05,2]
[356324747,1742274257935,400.7164,8.9e-05,2]
[356324748,1742274258066,1000.0,8.9e-05,2]
[356324749,1742274334491,200.41780923,8.855e-05,2]
[356324750,1742274338126,17073.28,8.554e-05,2]
[356324752,1742274406058,250.0,8.551e-05,2]
[356324754,1742274466966,249.3,8.536e-05,2]
[356324757,1742274525769,-1106.11,8.925e-05,2]
[356324758,1742274525802,-250.0,8.937e-05,2]
[356324759,1742274525832,-1106.11,8.949e-05,2]
[356324760,1742274525861,-571.35174392,8.961e-05,2]
[356324761,1742274525891,-3945.31004138,8.961e-05,2]
[356324762,1742274525926,-6978.8817853,8.961e-05,2]
[356324763,1742274525960,-6978.8817853,8.961e-05,2]
[356324764,1742274525994,-5996.92638802,8.961e-05,2]
[356324765,1742274526024,-981.95539728,8.972e-05,2]
[356324766,1742274526065,-124.15460272,8.972e-05,2]
[356324767,1742274526094,-502.73338672,8.973e-05,2]
[356324768,1742274526122,-500.41301478,8.973e-05,2]
[356324769,1742274526150,-151.97496644,8.973e-05,2]
[356324770,1742274526177,-152.28477108,8.973e-05,2]
[356324771,1742274526207,-1106.11,8.995e-05,2]
[356324772,1742274526236,-411.97156954,8.999e-05,2]
[356324773,1742274526264,-150.0,8.999e-05,2]
[356324774,1742274526292,-3879.23947402,9e-05,2]
[356324775,1742274526325,-6978.8817853,9e-05,2]
[356324776,1742274526358,-6978.8817853,9e-05,2]
[356324777,1742274526390,-6978.8817853,9e-05,2]
[356324778,1742274526426,-6978.8817853,9e-05,2]
[356324779,1742274526529,-6978.8817853,9e-05,2]
[356324780,1742274526561,-6978.8817853,9e-05,2]
[356324781,1742274526592,-6978.8817853,9e-05,2]
[356324782,1742274526626,-923.45603508,9e-05,2]
[356324783,1742274526660,-6978.8817853,9e-05,2]
[356324784,1742274550706,-150.0,8.999e-05,2]
[356324785,1742274550733,-8661.86017018,9e-05,2]
[356324786,1742274550765,-883.15487777,9e-05,2]
[356324787,1742274550808,-8811.86017018,9e-05,2]
[356324788,1742274550838,-8811.86017018,9e-05,2]
[356324789,1742274550872,-8811.86017018,9e-05,2]
[356324790,1742274550929,-8811.86017018,9e-05,2]
[356324791,1742274550981,-8811.86017018,9e-05,2]
[356324792,1742274551037,-8811.86017018,9e-05,2]
[356324794,1742274572367,162.95,8.603e-05,2]
[356324814,1742274632267,-300.0,8.999e-05,2]
[356324816,1742274632284,-27201.67606086,9e-05,2]
[356324817,1742274632302,-12949.94158091,9e-05,2]
[356324818,1742274632331,-3726.0,9e-05,2]
[356324819,1742274632489,-850501.41239242,9e-05,2]
[356324820,1742274632509,-113793.86431857,9e-05,2]
[356324821,1742274632524,-191.84,9.001e-05,2]
[356324822,1742274632539,-191.00213414,9.001e-05,2]
[356324823,1742274632554,-1350.98950442,9.001e-05,2]
[356324824,1742274632570,-894.87,9.015e-05,2]
[356324825,1742274632583,-812.68,9.015e-05,2]
[356324826,1742274632598,-187.11,9.015e-05,2]
[356324827,1742274632613,-863.16,9.015e-05,2]
[356324828,1742274632627,-1106.11,9.019e-05,2]
[356324829,1742274632642,-1106.11,9.042e-05,2]
[356324830,1742274632656,-7333.87,9.064e-05,2]
[356324831,1742274632671,-1106.11,9.065e-05,2]
[356324832,1742274632686,-1106.11,9.089e-05,2]
[356324833,1742274632700,-1106.11,9.112e-05,2]
[356324834,1742274632715,-1106.11,9.136e-05,2]
[356324835,1742274632729,-1106.11,9.159e-05,2]
[356324836,1742274632745,-1106.11,9.182e-05,2]
[356324837,1742274632760,-1350.98950437,9.201e-05,2]
[356324838,1742274632774,-1106.11,9.206e-05,2]
[356324839,1742274632789,-1106.11,9.229e-05,2]
[356324840,1742274632804,-1000.0,9.247e-05,2]
[356324841,1742274632820,-1106.11,9.252e-05,2]
[356324842,1742274632836,-1106.11,9.276e-05,2]
[356324843,1742274632851,-1106.11,9.299e-05,2]
[356324844,1742274632865,-1106.11,9.323e-05,2]
[356324845,1742274632882,-467.79998958,9.375e-05,2]
[356324846,1742274632897,-1350.98950437,9.401e-05,2]
[356324847,1742274632913,-183.07,9.449e-05,2]
[356324848,1742274632928,-740.71,9.477e-05,2]
[356324849,1742274632944,-500.0,9.5e-05,2]
[356324850,1742274632960,-511.09,9.5e-05,2]
[356324851,1742274632975,-500.0,9.5e-05,2]
[356324852,1742274632991,-500.0,9.5e-05,2]
[356324853,1742274633006,-500.0,9.5e-05,2]
[356324854,1742274633021,-500.0,9.5e-05,2]
[356324855,1742274633037,-500.0,9.5e-05,2]
[356324856,1742274633053,-500.0,9.5e-05,2]
[356324857,1742274633071,-500.0,9.5e-05,2]
[356324858,1742274633092,-500.0,9.5e-05,2]
[356324859,1742274633102,-500.0,9.5e-05,2]
[356324860,1742274633348,-500.0,9.5e-05,2]
[356324861,1742274633358,-500.0,9.5e-05,2]
[356324862,1742274633369,-500.0,9.5e-05,2]
[356324863,1742274633379,-500.0,9.5e-05,2]
[356324864,1742274633389,-500.0,9.5e-05,2]
[356324865,1742274633400,-500.0,9.5e-05,2]
[356324866,1742274633410,-500.0,9.5e-05,2]
[356324867,1742274633421,-500.0,9.5e-05,2]
[356324868,1742274633430,-500.0,9.5e-05,2]
[356324869,1742274633441,-500.0,9.5e-05,2]
[356324870,1742274633451,-500.0,9.5e-05,2]
[356324871,1742274633461,-500.0,9.5e-05,2]
[356324872,1742274633471,-500.0,9.5e-05,2]
[356324873,1742274633482,-500.0,9.5e-05,2]
[356324874,1742274633491,-500.0,9.5e-05,2]
[356324875,1742274633502,-500.0,9.5e-05,2]
[356324876,1742274633512,-500.0,9.5e-05,2]
[356324877,1742274633522,-500.0,9.5e-05,2]
[356324878,1742274633532,-500.0,9.5e-05,2]
[356324879,1742274633542,-500.0,9.5e-05,2]
[356324880,1742274633552,-500.0,9.5e-05,2]
[356324881,1742274633562,-500.0,9.5e-05,2]
[356324882,1742274633572,-342.68,9.5e-05,2]
[356324883,1742274633584,-630.0,9.533e-05,2]
[356324884,1742274633595,-929.40002185,9.549e-05,2]
[356324885,1742274633605,-1350.98950437,9.6e-05,2]
[356324886,1742274633616,-344.283405,9.7e-05,2]
[356324887,1742274633626,-150.0,9.775e-05,2]
[356324888,1742274633636,-150.0,9.786e-05,2]
[356324889,1742274633646,-150.0,9.795e-05,2]
[356324890,1742274633656,-1350.98950437,9.8e-05,2]
[356324891,1742274633666,-150.0,9.818e-05,2]
[356324892,1742274633677,-250.0,9.818e-05,2]
[356324893,1742274633687,-150.0,9.818e-05,2]
[356324894,1742274633697,-250.0,9.818e-05,2]
[356324895,1742274633708,-194.52929546,9.838e-05,2]
[356324896,1742274633718,-349.136,9.855e-05,2]
[356324897,1742274633728,-573.735,9.855e-05,2]
[356324898,1742274633738,-150.0,9.86e-05,2]
[356324899,1742274633748,-1000.0,9.863e-05,2]
[356324900,1742274633758,-1000.0,9.863e-05,2]
[356324901,1742274633767,-1000.0,9.863e-05,2]
[356324902,1742274633777,-1000.0,9.863e-05,2]
[356324903,1742274633787,-1000.0,9.863e-05,2]
[356324904,1742274633796,-1000.0,9.863e-05,2]
[356324905,1742274633806,-1000.0,9.863e-05,2]
[356324906,1742274633816,-1000.0,9.863e-05,2]
[356324907,1742274633827,-1000.0,9.863e-05,2]
[356324908,1742274633838,-1000.0,9.863e-05,2]
[356324909,1742274633847,-1000.0,9.863e-05,2]
[356324910,1742274633858,-1000.0,9.863e-05,2]
[356324911,1742274633867,-1000.0,9.863e-05,2]
[356324912,1742274633877,-1000.0,9.863e-05,2]
[356324913,1742274633886,-1000.0,9.863e-05,2]
[356324914,1742274633897,-1000.0,9.863e-05,2]
[356324915,1742274633907,-1000.0,9.863e-05,2]
[356324916,1742274633917,-1000.0,9.863e-05,2]
[356324917,1742274633926,-1000.0,9.863e-05,2]
[356324918,1742274633936,-1000.0,9.863e-05,2]
[356324919,1742274633946,-1000.0,9.863e-05,2]
[356324920,1742274633956,-1000.0,9.863e-05,2]
[356324921,1742274633966,-1000.0,9.863e-05,2]
[356324922,1742274633976,-1000.0,9.863e-05,2]
[356324923,1742274633986,-1000.0,9.863e-05,2]
[356324924,1742274633996,-1000.0,9.863e-05,2]
[356324925,1742274634006,-1000.0,9.863e-05,2]
[356324926,1742274634016,-1000.0,9.863e-05,2]
[356324927,1742274634026,-1000.0,9.863e-05,2]
[356324928,1742274634035,-1000.0,9.863e-05,2]
[356324929,1742274634044,-1000.0,9.863e-05,2]
[356324930,1742274634054,-1000.0,9.863e-05,2]
[356324931,1742274634064,-1000.0,9.863e-05,2]
[356324932,1742274634074,-1000.0,9.863e-05,2]
[356324933,1742274634086,-1000.0,9.863e-05,2]
[356324934,1742274634096,-1000.0,9.863e-05,2]
[356324935,1742274634105,-1000.0,9.863e-05,2]
[356324936,1742274634115,-1000.0,9.863e-05,2]
[356324937,1742274634127,-1000.0,9.863e-05,2]
[356324938,1742274634136,-1000.0,9.863e-05,2]
[356324939,1742274634145,-1000.0,9.863e-05,2]
[356324940,1742274634157,-1000.0,9.863e-05,2]
[356324941,1742274634167,-1000.0,9.863e-05,2]
[356324942,1742274634177,-1000.0,9.863e-05,2]
[356324943,1742274634186,-1000.0,9.863e-05,2]
[356324944,1742274634196,-1000.0,9.863e-05,2]
[356324945,1742274634205,-1000.0,9.863e-05,2]
[356324946,1742274634215,-1000.0,9.863e-05,2]
[356324947,1742274634225,-1000.0,9.863e-05,2]
[356324948,1742274634234,-1000.0,9.863e-05,2]
[356324949,1742274634245,-1000.0,9.863e-05,2]
[356324950,1742274634254,-1000.0,9.863e-05,2]
[356324951,1742274634264,-1000.0,9.863e-05,2]
[356324952,1742274634274,-631.0,9.863e-05,2]
[356324953,1742274634283,-150.94890671,9.887e-05,2]
[356324954,1742274634293,-4079.0,9.888e-05,2]
[356324955,1742274634303,-1429.0,9.888e-05,2]
[356324956,1742274634313,-420.0,9.899e-05,2]
[356324957,1742274634323,-3935.0,9.9e-05,2]
[356324958,1742274634332,-1013.0,9.9e-05,2]
[356324959,1742274634344,-152.524,9.9e-05,2]
[356324960,1742274634355,-1000.0,9.9e-05,2]
[356324961,1742274634365,-5036.4725,9.9e-05,2]
[356324962,1742274634375,-1000.0,9.9e-05,2]
[356324963,1742274634384,-1000.0,9.9e-05,2]
[356324964,1742274634394,-1000.0,9.9e-05,2]
[356324965,1742274634404,-1000.0,9.9e-05,2]
[356324966,1742274634413,-1000.0,9.9e-05,2]
[356324967,1742274634423,-1000.0,9.9e-05,2]
[356324968,1742274634433,-1000.0,9.9e-05,2]
[356324969,1742274634443,-1000.0,9.9e-05,2]
[356324970,1742274634453,-1000.0,9.9e-05,2]
[356324971,1742274634463,-1000.0,9.9e-05,2]
[356324972,1742274634472,-1000.0,9.9e-05,2]
[356324973,1742274634481,-1000.0,9.9e-05,2]
[356324974,1742274634491,-1235.0,9.9e-05,2]
[356324975,1742274634500,-150.0,9.9e-05,2]
[356324976,1742274634511,-250.0,9.9e-05,2]
[356324977,1742274634520,-150.0,9.944e-05,2]
[356324978,1742274634530,-150.0,9.96e-05,2]
[356324979,1742274634539,-8310.09221524,9.971e-05,2]
[356324980,1742274634549,-8865.0,9.973e-05,2]
[356324981,1742274634559,-52702.0,9.973e-05,2]
[356324982,1742274634568,-501.02201484,9.973e-05,2]
[356324983,1742274634577,-1503.67,9.974e-05,2]
[356324984,1742274634587,-1234.82,9.979e-05,2]
[356324985,1742274634597,-652.1355438,9.999e-05,2]
[356324986,1742274634606,-5953.5358776,9.999e-05,2]
[356324987,1742274634616,-155.93790101,0.0001,2]
[356324988,1742274634626,-46833.38187148,0.0001,2]
[356324989,1742274634635,-234602.74475768,0.0001,2]
[356324990,1742274634659,-3702.61476916,0.0001,2]
[356324991,1742274634678,-8707.2,0.0001,2]
[356324995,1742274638232,-1054.27225137,9.9e-05,2]
[356324996,1742274638270,-59.72774863,9.9e-05,2]
[356324997,1742274638280,-859.46725137,0.0001,2]
[356324998,1742274638291,-16620.3,0.0001,2]
[356324999,1742274638302,-574.64045459,0.0001,2]
[356325000,1742274638313,-974.16207443,0.0001,2]
[356325001,1742274638386,-300.32,0.0001,2]
[356325002,1742274638397,-806.13926433,0.0001,2]
[356325003,1742274638443,-2745.99451924,0.0001,2]
[356325004,1742274640333,-3645.60458509,0.0001,2]
[356325005,1742274640346,-615.12143883,0.0001,2]
[356325006,1742274640358,-340.9471545,0.0001,2]
[356325007,1742274640370,-2384.73000003,0.0001,2]
[356325008,1742274640381,-3688.07160139,0.0001,2]
[356325009,1742274640393,-4019.09127962,0.0001,2]
[356325010,1742274640405,-315.6,0.0001,2]
[356325011,1742274640442,-258.8204571,0.0001,2]
[356325012,1742274640607,-296413.67184554,0.0001,2]
[356325013,1742274640618,-41626.79191419,0.0001,2]
[356325014,1742274640663,-2991.1802949,0.0001,2]
[356325066,1742274643520,-16.83749136,0.0001,2]
[356325067,1742274643535,-554.16250864,0.0001,2]
[356325068,1742274643544,-107.58016449,0.0001,2]
[356325069,1742274644481,-41574.93,0.0001,2]
[356325070,1742274646362,-533.59496,0.0001,2]
[356325071,1742274646541,-4064.83,0.0001,2]
[356325072,1742274646552,-2405.83339713,0.0001,2]
[356325075,1742274647410,-783.45079787,0.0001,2]
[356325078,1742275005294,1542.54,8.219e-05,2]
[356325080,1742275180562,150.0,9.562e-05,7]
[356325081,1742275323551,-150.0,8.969e-05,2]
[356325082,1742275383367,-50.0,8.969e-05,2]
[356325083,1742275383393,-100.0,9e-05,2]
[356325084,1742275507664,187.11,8.937e-05,2]
[356325085,1742275521936,-150.0,9e-05,2]
[356325086,1742275533087,345.99337757,0.0002,120]
[356325087,1742275537556,3787.47113068,8e-05,2]
[356325088,1742275537579,2688.29864395,8e-05,2]
[356325089,1742275563605,822.88705949,8e-05,2]
[356325090,1742275599033,522.44,0.00022,120]
[356325091,1742275630821,2339.44475251,0.00021,120]
[356325092,1742275650010,250.0,8.943e-05,2]
[356325093,1742275667151,3993.6251625,0.0002,120]
[356325094,1742275676101,1121.6180803,8e-05,2]
[356325095,1742275706987,376.61765301,7.888e-05,2]
[356325096,1742275723875,800.0,0.00021,120]
[356325107,1742275831492,-296.06898983,9e-05,2]
[356325108,1742275831554,-570.46890976,9e-05,2]
[356325109,1742275831564,-250.0,9.004e-05,2]
[356325110,1742275831574,-150.0,9.004e-05,2]
[356325111,1742275831584,-908.96,9.017e-05,2]
[356325112,1742275831595,-3019.60976604,9.078e-05,2]
[356325113,1742275831607,-18585.25772274,9.078e-05,2]
[356325114,1742275831626,-961.09123458,9.078e-05,2]
[356325115,1742275831687,-417.71088825,9.078e-05,2]
[356325116,1742275831699,-916.33038839,9.078e-05,2]
[356325117,1742275831710,-48.6033919,9.101e-05,2]
[356325118,1742275831722,-131.4066081,9.101e-05,2]
[356325119,1742275831732,-500.0,9.114e-05,2]
[356325120,1742275831742,-209.4487332,9.5e-05,2]
[356325121,1742275831751,-1500.0,9.526e-05,2]
[356325122,1742275831761,-922.93,9.557e-05,2]
[356325123,1742275831771,-1368.10886965,9.557e-05,2]
[356325124,1742275831784,-1434.24613958,9.557e-05,2]
[356325125,1742275831795,-575.10458265,9.557e-05,2]
[356325126,1742275831817,-615.45040812,9.557e-05,2]
[356325127,1742275831827,-1000.0,9.557e-05,2]
[356325128,1742275831837,-333.2125538,9.7e-05,2]
[356325129,1742275831848,-1000.0,9.7e-05,2]
[356325130,1742275831858,-150.0,9.729e-05,2]
[356325131,1742275831867,-150.0,9.762e-05,2]
[356325132,1742275831876,-205.0,9.8e-05,2]
[356325134,1742275831887,-568.9989,9.8e-05,2]
[356325136,1742275831896,-2327.63076571,9.828e-05,2]
[356325137,1742275831906,-150.0,9.838e-05,2]
[356325138,1742275831915,-88.77737237,9.839e-05,2]
[356325139,1742275831927,-61.22262763,9.839e-05,2]
[356325140,1742275831936,-168.55,9.845e-05,2]
[356325142,1742275831945,-507.15443276,9.873e-05,2]
[356325144,1742275831954,-500.0,9.873e-05,2]
[356325146,1742275831964,-150.0,9.889e-05,2]
[356325147,1742275831973,-1684.77793961,9.89e-05,2]
[356325148,1742275831985,-322.26793109,9.89e-05,2]
[356325149,1742275831997,-1047.87528201,9.89e-05,2]
[356325150,1742275832006,-177.3394423,9.899e-05,2]
[356325151,1742275832016,-991.4371,9.9e-05,2]
[356325152,1742275832025,-3820.06591083,9.9e-05,2]
[356325153,1742275832042,-5999.93323366,9.9e-05,2]
[356325154,1742275832053,-22866.22372397,9.9e-05,2]
[356325155,1742275832065,-15617.28,9.9e-05,2]
[356325156,1742275832207,-718.78087629,9.9e-05,2]
[356325157,1742275832219,-2033.399527,9.9e-05,2]
[356325158,1742275832230,-1133.11323801,9.9e-05,2]
[356325159,1742275832241,-531.053597,9.9e-05,2]
[356325161,1742275837415,-5463.36885183,9.9e-05,2]
[356325162,1742275837426,-3779.0,9.9e-05,2]
[356325163,1742275837442,-503.01173433,9.9e-05,2]
[356325164,1742275837475,-2814.15464849,9.9e-05,2]
[356325165,1742275837535,-8519.11979,9.9e-05,2]
[356325166,1742275837650,-60854.55120561,9.9e-05,2]
[356325204,1742275840061,-736.49767051,9.9e-05,2]
[356325208,1742275840085,-2342.47585922,9.9e-05,2]
[356325210,1742275840096,-501.09567896,9.9e-05,2]
[356325268,1742275842563,-170.51,9.519e-05,2]
[356325270,1742275842573,-40940.98273233,9.9e-05,2]
[356325274,1742275842752,-22082.69433849,9.9e-05,2]
[356325319,1742275845810,-2976.63055095,9.9e-05,2]
[356325320,1742275845821,-286.21839978,9.9e-05,2]
[356325321,1742275845872,-515.82099314,9.9e-05,2]
[356325324,1742275883330,222.0619,0.0001045,3]
[356325325,1742276000654,-150.0,8.97e-05,2]
[356325326,1742276051015,257.69969393,8.219e-05,2]
[356325327,1742276051038,1207.71030607,8.219e-05,2]
[356325328,1742276419945,150.0,9.562e-05,7]
[356325331,1742276603716,228.1883666,0.00022,120]
[356325332,1742276758701,250.0,8.92e-05,2]
[356325333,1742276829994,2000.0,8.923e-05,2]
[356325346,1742277006289,-150.0,8.97e-05,2]
[356325351,1742277031734,-602.2,8.97e-05,2]
[356325352,1742277031745,-233.65692776,8.973e-05,2]
[356325353,1742277031849,-16.34307224,8.973e-05,2]
[356325354,1742277031859,-3286.08,8.977e-05,2]
[356325355,1742277031871,-250.0,9e-05,2]
[356325356,1742277031881,-1000.0,9.021e-05,2]
[356325357,1742277031891,-187.11,9.021e-05,2]
[356325358,1742277031903,-158.23,9.021e-05,2]
[356325359,1742277031913,-23900.0,9.06e-05,2]
[356325360,1742277031923,-454.48,9.072e-05,2]
[356325361,1742277031933,-158.23,9.134e-05,2]
[356325362,1742277031943,-158.23,9.247e-05,2]
[356325363,1742277031953,-158.23,9.359e-05,2]
[356325364,1742277031963,-158.23,9.472e-05,2]
[356325365,1742277031973,-287.4094153,9.7e-05,2]
[356325366,1742277031983,-150.0,9.798e-05,2]
[356325367,1742277031992,-12788.86345344,9.799e-05,2]
[356325368,1742277032002,-52909.4652,9.8e-05,2]
[356325369,1742277032012,-2500.0,9.8e-05,2]
[356325370,1742277032021,-150.0,9.867e-05,2]
[356325371,1742277032031,-250.0,9.867e-05,2]
[356325372,1742277032040,-150.0,9.867e-05,2]
[356325373,1742277032051,-250.0,9.867e-05,2]
[356325374,1742277032061,-150.0,9.867e-05,2]
[356325375,1742277032073,-501.50601131,9.873e-05,2]
[356325376,1742277032083,-159.35901137,9.9e-05,2]
[356325377,1742277032093,-307506.73798231,9.9e-05,2]
[356325378,1742277032139,-27626.21355249,9.9e-05,2]
[356325379,1742277032151,-3443.49879333,9.9e-05,2]
[356325380,1742277032168,-988.468,9.9e-05,2]
[356325383,1742277037623,-773.97421782,9.9e-05,2]
[356325384,1742277037686,-20780.54390345,9.9e-05,2]
[356325385,1742277037741,-401.616215,9.9e-05,2]
[356325386,1742277037752,-26576.51883382,9.9e-05,2]
[356325387,1742277037763,-123105.55457209,9.9e-05,2]
[356325388,1742277037776,-13049.56183272,9.9e-05,2]
[356325389,1742277037787,-8155.7,9.9e-05,2]
[356325390,1742277037809,-358.1318956,9.9e-05,2]
[356325391,1742277037822,-1529.14655895,9.9e-05,2]
[356325392,1742277037835,-804.32,9.9e-05,2]
[356325400,1742277039926,-310.5,9.9e-05,2]
[356325401,1742277039938,-1759.8369796,9.9e-05,2]
[356325402,1742277039964,-3419.99457149,9.9e-05,2]
[356325403,1742277040050,-12210.74810465,9.9e-05,2]
[356325406,1742277043796,-793.62008107,9.9e-05,2]
[356325407,1742277043810,-15196.0458,9.9e-05,2]
[356325408,1742277043854,-500.0,9.9e-05,2]
[356325412,1742277045763,-2292.72086,9.9e-05,2]
[356325413,1742277045779,-98656.52192458,9.9e-05,2]
[356325414,1742277045788,-1833.33704833,9.9e-05,2]
[356325415,1742277045800,-4040.11477997,9.9e-05,2]
[356325416,1742277045891,-1699.99188854,9.9e-05,2]
[356325417,1742277045951,-162.23951616,9.9e-05,2]
[356325418,1742277045961,-358.21848658,9.9e-05,2]
[356325419,1742277095470,1474.46,8.219e-05,2]
[356325420,1742277147587,-150.0,9.055e-05,2]
[356325421,1742277275070,-150.0,9.011e-05,2]
[356325422,1742277412889,-845.78244731,0.00022,120]
[356325423,1742277412915,-312.75852441,0.00022,120]
[356325424,1742277412941,-162.0729423,0.00022,120]
[356325425,1742277412981,-518.632172,0.00025288,120]
[356325426,1742277413010,-204.24546898,0.00025288,120]
[356325427,1742277413099,-569.031082,0.00025288,120]
[356325428,1742277413292,-209.9022697,0.00025288,120]
[356325429,1742277413521,-1016.82117932,0.00025288,120]
[356325430,1742277413547,-569.031082,0.00026288,120]
[356325431,1742277413572,-2043.491555,0.00026788,120]
[356325432,1742277413597,-208.98519096,0.0002736,120]
[356325434,1742277659205,584.95082461,8.927e-05,2]
[356325436,1742277766854,150.67,8.915e-05,2]
[356325437,1742277843261,-202.45,8.927e-05,2]
[356325438,1742277877399,311.57,8.671e-05,2]
[356325439,1742277951906,173.63,8.879e-05,2]
[356325440,1742277967425,2000.0,8.1e-05,2]
[356325441,1742277989742,2000.0,8.639e-05,2]
[356325442,1742278012431,250.0,8.639e-05,2]
[356325444,1742278082258,187.14,8.639e-05,2]
[356325445,1742278091664,170.51,8.644e-05,2]
[356325450,1742278231993,-212.59917539,8.927e-05,2]
[356325451,1742278232003,-250.0,8.933e-05,2]
[356325452,1742278232012,-150.67,8.952e-05,2]
[356325453,1742278232022,-250.0,8.954e-05,2]
[356325454,1742278232032,-300.0,8.982e-05,2]
[356325455,1742278232042,-150.67,8.989e-05,2]
[356325456,1742278232051,-273.64,9.003e-05,2]
[356325457,1742278232061,-77.24,9.011e-05,2]
[356325458,1742278232070,-150.67,9.026e-05,2]
[356325459,1742278232080,-1500.0,9.046e-05,2]
[356325460,1742278232089,-294.74,9.055e-05,2]
[356325461,1742278232099,-150.67,9.063e-05,2]
[356325462,1742278232108,-150.67,9.1e-05,2]
[356325463,1742278232118,-150.67,9.138e-05,2]
[356325464,1742278232128,-150.67,9.175e-05,2]
[356325465,1742278232137,-300.0,9.186e-05,2]
[356325466,1742278232146,-605.09082452,9.187e-05,2]
[356325467,1742278232158,-1569.27683,9.187e-05,2]
[356325468,1742278232204,-4020.00927616,9.187e-05,2]
[356325469,1742278232213,-150.67,9.212e-05,2]
[356325470,1742278232223,-150.67,9.249e-05,2]
[356325471,1742278232232,-150.67,9.286e-05,2]
[356325472,1742278232242,-502.0,9.288e-05,2]
[356325473,1742278232251,-150.67,9.323e-05,2]
[356325474,1742278232261,-150.67,9.36e-05,2]
[356325475,1742278232271,-507.06,9.5e-05,2]